{"text_format":"3","workbook":"xlsx","n_sheets":3,"sheets":["Instruction Guide","Summary","Item Details"],"read":"whole","date_system":"1900"}

{"sheet":"Instruction Guide","index":0,"n_rows":9,"n_cols":2,"rows_kept":9,"merged":[[0,1,0,5],[1,1,1,5],[2,1,2,5],[3,1,3,5],[5,0,5,8],[6,0,6,8],[8,0,8,8]]}
["RFQ No","SS//2022"]
["RFQ Title","Structured Network Cabling installation and maintenance"]
["Customer","South African National Space Agency - Herman"]
["Bidder name "]
[]
["1. Complete the prices in WORKSHEET: Item Details (only cells in LIGHT BLUE)\n2. "]
["2. Complete the SUMMARY page with additional details (only cells in LIGHT BLUE)"]
["3. Enter bidder name in THIS worksheet only"]
["4. ALL prices entered must EXCLUDE VAT. TOTAL price must include VAT"]

{"sheet":"Summary","index":1,"n_rows":25,"n_cols":6,"rows_kept":25,"merged":[[0,1,0,4],[1,1,1,4],[2,1,2,4],[3,1,3,4],[5,1,5,3],[16,1,16,5],[17,1,18,1],[17,2,18,2],[17,3,17,5]]}
["RFQ No",{"$f":"'Instruction Guide'!B1","v":"SS//2022"}]
["RFQ Title",{"$f":"'Instruction Guide'!B2","v":"Structured Network Cabling installation and maintenance"}]
["Customer",{"$f":"'Instruction Guide'!B3","v":"South African National Space Agency - Herman"}]
["Bidder name ",{"$f":"'Instruction Guide'!B4","v":0}]
[]
[null,"Installation Cost (for evaluation)"]
[null,"#","Description","Sub Total (VAT excl.)"]
[null,1,"Structured cabling items",{"$f":"'Item Details'!F58","v":{"v":0,"d":"R0.00"}}]
[null,2,"Travelling"]
[null,3,"Other expenses"]
[null,4,"Other expenses"]
[null,null,"Total (excl VAT)",{"$f":"SUM(D8:D11)","v":{"v":0,"d":"R0.00"}}]
[null,null,"VAT",{"$f":"D12*0.15","v":{"v":0,"d":"R0.00"}}]
[null,null,"Total (inc Vat)",{"$f":"SUM(D12:D13)","v":{"v":0,"d":"R0.00"}}]
[]
[]
[null,"Future additional work (3 year contract) - non-evaluation purposes"]
[null,"#","Description","Cost (VAT incl.)"]
[{"$nulls":3},"Year 1","Year 2","Year 3"]
[null,1,"Callout fee"]
[null,2,"Travelling to Hermanus"]
[null,2,"Installation of one Legrand CAT6a UTP MOSIAC socket + 50m CAT6A UTP solid core cable (network hardware to be included in installation price per point)."]
[null,3,"End-to-End test and report of one CAT6a connection"]
[null,4,"Fibre splice cost per splice"]
[null,5,"End-to-End test and report of one fibre core"]

{"sheet":"Item Details","index":2,"n_rows":58,"n_cols":6,"rows_kept":58,"merged":[[57,3,57,4]]}
["RFQ No",{"$f":"'Instruction Guide'!B1","v":"SS//2022"}]
["RFQ Title",{"$f":"'Instruction Guide'!B2","v":"Structured Network Cabling installation and maintenance"}]
["Customer",{"$f":"'Instruction Guide'!B3","v":"South African National Space Agency - Herman"}]
["Bidder name ",{"$f":"'Instruction Guide'!B4","v":0}]
[]
["No","Product/Service","Specs/web link of item offered","Quantity","Unit Price\n(excl. VAT )","Line Price\n(excl. VAT)"]
["A1","Space Weather Building Cabling + Fibre"]
["A1.1","CAT6a UTP solid core cable (minimum 500MHz performance) in meters",null,4000,null,{"$f":"D8*E8","v":{"v":0,"d":"R0.00"}}]
["A1.2","CAT6a UTP 12-port zone distribution boxes (complete with all connectors, etc)",null,12,null,{"$f":"D9*E9","v":{"v":0,"d":"R0.00"}}]
["A1.3","CAT6a 24 port patch panels complete (complete with all connectors, etc)",null,6,null,{"v":0,"d":"R0.00"}]
["A1.4","Brush panels",null,10,null,{"v":0,"d":"R0.00"}]
["A1.5","Legrand Mosiac RJ45 CAT6a socket (0 765 71)",null,100,null,{"v":0,"d":"R0.00"}]
["A1.6","Legrand Soluclip White pair (0 756 90)",null,80,null,{"v":0,"d":"R0.00"}]
["A1.7","Surface mount CAT6a UTP box + CAT6a UTP Keystone socket",null,15,null,{"v":0,"d":"R0.00"}]
["A1.8","OM3 (50/125, 850nm optimised) multimode duct fibre cable (to fit in 8mm diameter microduct) - 8 core + installation (in meters)",null,230,null,{"v":0,"d":"R0.00"}]
["A1.9","24 Port LC fibre patch panel + midcouplers, etc for 8 cores to be spliced",null,1,null,{"v":0,"d":"R0.00"}]
[]
["A1.10","Fibre splices",null,8,null,{"v":0,"d":"R0.00"}]
["A1.11","CAT6a Cable installation between patch panels and distribution boxes; labeling; 144 patch panel ports to 144 distribution box ports",null,144,null,{"v":0,"d":"R0.00"}]
["A1.12","Patching of Legrand Mosiac sockets",null,75,null,{"v":0,"d":"R0.00"}]
["A1.13","Velcro-type fasteners for bundling of cables",null,300,null,{"v":0,"d":"R0.00"}]
["A1.14","Testing + report of CAT6a ports",null,144,null,{"v":0,"d":"R0.00"}]
[]
["B1","Guest House Structured Cabling + Fibre"]
["B1.1","Slimline vertical mount cabinet",null,1,null,{"$f":"D25*E25","v":{"v":0,"d":"R0.00"}}]
["B1.2","CAT6a 12 port or more patch panels complete (complete with all connectors, etc)",null,1,null,{"v":0,"d":"R0.00"}]
["B1.3","24 Port LC fibre patch panel + midcouplers, etc for 4 cores to be spliced",null,1,null,{"v":0,"d":"R0.00"}]
["B1.4","Surface mount CAT6a UTP box + CAT6a UTP Keystone socket",null,2,null,{"v":0,"d":"R0.00"}]
["B1.5","OM3 (50/125, 850nm optimised) multimode duct fibre cable (to fit in 8mm diameter microduct) - 4 core + installation",null,130,null,{"v":0,"d":"R0.00"}]
["B1.6","Microduct - 2 channel - minimum 8mm inner diameter (in meters) + 10 couplers",null,20,null,{"v":0,"d":"R0.00"}]
["B1.7","Fibre splices",null,4,null,{"v":0,"d":"R0.00"}]
["B1.8","1kVA rack mounted online dual conversion UPS with SNMP management (minimum backup time: >5 minute)",null,1,null,{"v":0,"d":"R0.00"}]
[]
["C1","Generator House Structured Cabling + Fibre"]
["C1.1","Slimline vertical mount cabinet",null,1,null,{"$f":"D35*E35","v":{"v":0,"d":"R0.00"}}]
["C1.2","CAT6a 12 port or more patch panels complete (complete with all connectors, etc)",null,1,null,{"v":0,"d":"R0.00"}]
["C1.3","24 Port LC fibre patch panel + midcouplers, etc for 4 cores to be spliced",null,1,null,{"v":0,"d":"R0.00"}]
["C1.4","Surface mount CAT6a UTP box + CAT6a UTP Keystone socket",null,2,null,{"v":0,"d":"R0.00"}]
["C1.5","OM3 (50/125, 850nm optimised) multimode duct fibre cable (to fit in 8mm diameter microduct) - 4 core + installation",null,190,null,{"v":0,"d":"R0.00"}]
["C1.6","Microduct - 2 channel - minimum 8mm inner diameter (in meters) + 6 couplers",null,120,null,{"v":0,"d":"R0.00"}]
["C1.7","Fibre splices",null,4,null,{"v":0,"d":"R0.00"}]
["C1.8","1kVA rack mounted online dual conversion UPS with SNMP management (minimum backup time: >5 minute)",null,1,null,{"v":0,"d":"R0.00"}]
[]
["D1","Main Server Room Fibre"]
["D1.1","24 Port LC fibre patch panel + midcouplers, etc for 16 cores to be spliced (entry for 3 fibre cables)",null,1,null,{"$f":"D45*E45","v":{"v":0,"d":"R0.00"}}]
["D1.2","Fibre splices",null,16,null,{"v":0,"d":"R0.00"}]
["D1.3","Testing + report of fibre cores",null,16,null,{"v":0,"d":"R0.00"}]
[]
["E1","Patch cables"]
["E1.1","CAT6a UTP patch lead (molded RJ45 / stripped) - 30m",null,20,null,{"$f":"D50*E50","v":{"v":0,"d":"R0.00"}}]
["E1.2","CAT6a UTP patch lead (molded RJ45 / stripped) - 20m",null,50,null,{"v":0,"d":"R0.00"}]
["E1.3","CAT6a UTP patch lead (molded RJ45 / stripped) - 15m",null,30,null,{"v":0,"d":"R0.00"}]
["E1.4","CAT6a UTP patch lead (molded RJ45 / stripped) - 10m",null,30,null,{"v":0,"d":"R0.00"}]
["E1.5","CAT6a UTP patch lead - 3m",null,50,null,{"v":0,"d":"R0.00"}]
["E1.6","CAT6a UTP patch lead - 2m",null,120,null,{"v":0,"d":"R0.00"}]
["E1.7","CAT6a UTP patch lead - 1m",null,120,null,{"v":0,"d":"R0.00"}]
["E1.8","CAT6a UTP patch lead - 0.3m or 0.5m (preferred: 0.3m blue)",null,250,null,{"v":0,"d":"R0.00"}]
[{"$nulls":3},"Total (excl. VAT)",null,{"$f":"SUM(F8:F57)","v":{"v":0,"d":"R0.00"}}]